[Event "*** Qualifier 3: Titled Tuesday 3|2 Blitz"]
[Site "Chess.com"]
[Date "2017.04.18"]
[Round "3"]
[White "andreimacovei2000"]
[Black "nurmiTV"]
[Result "0-1"]
[WhiteElo "2401"]
[BlackElo "2418"]
[TimeControl "180+2"]
[EndTime "13:37:03 PDT"]
[Termination "nurmiTV won by resignation"]

1. e4 {[%clk 0:02:59.1]} 1... c5 {[%clk 0:03:00.3]} 2. Nf3 {[%clk 0:03:00]} 2...
Nc6 {[%clk 0:03:00.5]} 3. Bb5 {[%clk 0:03:00.8]} 3... g6 {[%clk 0:03:01.3]} 4.
Bxc6 {[%clk 0:03:01.3]} 4... dxc6 {[%clk 0:03:02]} 5. d3 {[%clk 0:03:02.1]} 5...
Bg7 {[%clk 0:03:03.3]} 6. h3 {[%clk 0:03:03]} 6... Nf6 {[%clk 0:03:03.9]} 7. Nc3
{[%clk 0:03:02.2]} 7... O-O {[%clk 0:03:03.9]} 8. Be3 {[%clk 0:02:59.8]} 8... b6
{[%clk 0:03:03.1]} 9. Qd2 {[%clk 0:02:59.3]} 9... Ba6 {[%clk 0:02:56.2]} 10.
O-O-O {[%clk 0:02:45.2]} 10... Re8 {[%clk 0:02:48]} 11. g4 {[%clk 0:02:43.6]}
11... c4 {[%clk 0:02:43.9]} 12. d4 {[%clk 0:02:37.5]} 12... b5 {[%clk
0:02:42.4]} 13. e5 {[%clk 0:02:33.6]} 13... Nd5 {[%clk 0:02:40.6]} 14. Ne4
{[%clk 0:02:21.6]} 14... b4 {[%clk 0:02:36.9]} 15. Nc5 {[%clk 0:02:16.3]} 15...
c3 {[%clk 0:02:07.8]} 16. Qe1 {[%clk 0:02:11.7]} 16... Qa5 {[%clk 0:02:01]} 17.
Kb1 {[%clk 0:01:54.8]} 17... cxb2 {[%clk 0:01:51.5]} 18. Bd2 {[%clk 0:01:49.6]}
18... Rab8 {[%clk 0:01:34.9]} 19. Nb3 {[%clk 0:01:44.8]} 19... Qa3 {[%clk
0:01:31.9]} 20. h4 {[%clk 0:01:44.4]} 20... Bc4 {[%clk 0:01:23.3]} 21. h5 {[%clk
0:01:40.2]} 21... a5 {[%clk 0:01:22.3]} 22. hxg6 {[%clk 0:01:39.3]} 22... hxg6
{[%clk 0:01:22.5]} 23. Qg1 {[%clk 0:01:32.4]} 23... a4 {[%clk 0:01:21.8]} 0-1

[Event "*** Qualifier 3: Titled Tuesday 3|2 Blitz"]
[Site "Chess.com"]
[Date "2017.04.18"]
[Round "3"]
[White "yurisolo"]
[Black "GMMarcinDziuba"]
[Result "0-1"]
[WhiteElo "2453"]
[BlackElo "2533"]
[TimeControl "180+2"]
[EndTime "13:37:20 PDT"]
[Termination "GMMarcinDziuba won by resignation"]

1. e4 {[%clk 0:03:02]} 1... c5 {[%clk 0:03:00.5]} 2. Nf3 {[%clk 0:03:02.8]} 2...
d6 {[%clk 0:03:02.1]} 3. d4 {[%clk 0:03:04.2]} 3... cxd4 {[%clk 0:03:04]} 4.
Nxd4 {[%clk 0:03:06.1]} 4... Nf6 {[%clk 0:03:05.1]} 5. Nc3 {[%clk 0:03:07.8]}
5... a6 {[%clk 0:03:06.7]} 6. Bg5 {[%clk 0:03:09.3]} 6... Nbd7 {[%clk
0:03:04.6]} 7. Qe2 {[%clk 0:03:09.4]} 7... h6 {[%clk 0:03:00.8]} 8. Bxf6 {[%clk
0:03:09.4]} 8... Nxf6 {[%clk 0:03:00.3]} 9. O-O-O {[%clk 0:03:11.3]} 9... e5
{[%clk 0:02:55]} 10. Nf5 {[%clk 0:03:05.5]} 10... g6 {[%clk 0:02:55.2]} 11. Ne3
{[%clk 0:03:06.7]} 11... Be6 {[%clk 0:02:56.4]} 12. Ned5 {[%clk 0:03:00.3]}
12... Nxd5 {[%clk 0:02:53.5]} 13. Nxd5 {[%clk 0:03:00]} 13... Rc8 {[%clk
0:02:51.5]} 14. g3 {[%clk 0:02:59.6]} 14... Rc5 {[%clk 0:02:48.1]} 15. f4 {[%clk
0:02:50.8]} 15... Bxd5 {[%clk 0:02:46.7]} 16. exd5 {[%clk 0:02:46.8]} 16... Bg7
{[%clk 0:02:47.7]} 17. f5 {[%clk 0:02:42.5]} 17... gxf5 {[%clk 0:02:47.3]} 18.
Bh3 {[%clk 0:02:43.3]} 18... O-O {[%clk 0:02:48.2]} 19. Bxf5 {[%clk 0:02:40.8]}
19... Qg5+ {[%clk 0:02:48.6]} 20. Kb1 {[%clk 0:02:38.3]} 20... Qxf5 {[%clk
0:02:49.8]} 21. Rhf1 {[%clk 0:02:40.2]} 21... Qg6 {[%clk 0:02:50.9]} 22. g4
{[%clk 0:02:40.1]} 22... Rfc8 {[%clk 0:02:41.9]} 23. Rd2 {[%clk 0:02:38.2]}
23... Rc4 {[%clk 0:02:42.4]} 24. h3 {[%clk 0:02:38]} 24... Qe4 {[%clk
0:02:42.2]} 25. Qf2 {[%clk 0:02:38.9]} 25... R8c7 {[%clk 0:02:37.3]} 26. Re2
{[%clk 0:02:37.3]} 26... Qg6 {[%clk 0:02:34.1]} 27. Qg2 {[%clk 0:02:32]} 27...
Rf4 {[%clk 0:02:26.2]} 28. Rd1 {[%clk 0:02:25]} 28... e4 {[%clk 0:02:21.2]} 29.
Rde1 {[%clk 0:02:23.2]} 29... Re7 {[%clk 0:02:21]} 30. Qg3 {[%clk 0:02:13.7]}
30... Qf6 {[%clk 0:02:14.7]} 31. Qb3 {[%clk 0:02:12.3]} 31... Rf3 {[%clk
0:02:12.3]} 32. c3 {[%clk 0:02:04.5]} 32... Rxh3 {[%clk 0:02:12.8]} 33. a4
{[%clk 0:02:01.1]} 33... e3 {[%clk 0:02:05.7]} 34. Qb6 {[%clk 0:02:00.8]} 34...
Rf3 {[%clk 0:02:04]} 35. Ka1 {[%clk 0:01:40.3]} 35... Rf1 {[%clk 0:01:58.4]} 36.
Ka2 {[%clk 0:01:25.7]} 36... Rxe1 {[%clk 0:01:59]} 37. Rxe1 {[%clk 0:01:27.6]}
37... e2 {[%clk 0:01:56.3]} 38. a5 {[%clk 0:01:26.8]} 38... Qf4 {[%clk
0:01:47.6]} 39. Qd8+ {[%clk 0:01:14.7]} 39... Bf8 {[%clk 0:01:48.3]} 40. Qc8
{[%clk 0:01:12.5]} 40... Qa4+ {[%clk 0:01:47]} 41. Kb1 {[%clk 0:01:13.9]} 41...
Qd1+ {[%clk 0:01:47.8]} 0-1

[Event "*** Qualifier 3: Titled Tuesday 3|2 Blitz"]
[Site "Chess.com"]
[Date "2017.04.18"]
[Round "3"]
[White "DariuszMikrut"]
[Black "PowerThinking2650"]
[Result "1-0"]
[WhiteElo "2408"]
[BlackElo "2218"]
[TimeControl "180+2"]
[EndTime "13:37:29 PDT"]
[Termination "DariuszMikrut won by checkmate"]

1. d4 {[%clk 0:03:02]} 1... Nf6 {[%clk 0:03:01]} 2. c4 {[%clk 0:03:02.8]} 2...
g6 {[%clk 0:03:02.2]} 3. Nc3 {[%clk 0:03:03.2]} 3... Bg7 {[%clk 0:03:03.4]} 4.
e4 {[%clk 0:03:04.3]} 4... O-O {[%clk 0:03:04.9]} 5. f3 {[%clk 0:03:05]} 5... d6
{[%clk 0:03:05.5]} 6. Be3 {[%clk 0:03:04.8]} 6... a6 {[%clk 0:03:04.1]} 7. Qd2
{[%clk 0:03:05.1]} 7... c6 {[%clk 0:03:03.1]} 8. O-O-O {[%clk 0:02:58.7]} 8...
b5 {[%clk 0:03:02]} 9. Bh6 {[%clk 0:02:58.8]} 9... bxc4 {[%clk 0:02:54.8]} 10.
h4 {[%clk 0:02:58.5]} 10... Nh5 {[%clk 0:01:59.9]} 11. Bxg7 {[%clk 0:02:54.8]}
11... Kxg7 {[%clk 0:02:00.2]} 12. Nge2 {[%clk 0:02:55.7]} 12... Qa5 {[%clk
0:01:38.1]} 13. g4 {[%clk 0:02:54.9]} 13... Nf6 {[%clk 0:01:38.2]} 14. h5 {[%clk
0:02:56.1]} 14... e5 {[%clk 0:01:25.1]} 15. hxg6 {[%clk 0:02:55.9]} 15... fxg6
{[%clk 0:01:24.8]} 16. Qh6+ {[%clk 0:02:56.4]} 16... Kg8 {[%clk 0:01:23.5]} 17.
g5 {[%clk 0:02:49.6]} 17... Nh5 {[%clk 0:01:11.1]} 18. Ng3 {[%clk 0:02:47.3]}
18... Rxf3 {[%clk 0:00:57.2]} 19. Nxh5 {[%clk 0:02:42.7]} 19... Rxc3+ {[%clk
0:00:50.8]} 20. Kb1 {[%clk 0:02:33.9]} 20... gxh5 {[%clk 0:00:48.2]} 21. g6
{[%clk 0:02:25.9]} 21... Ra7 {[%clk 0:00:36.6]} 22. gxh7+ {[%clk 0:02:00.9]}
22... Rxh7 {[%clk 0:00:32.9]} 23. Bxc4+ {[%clk 0:02:00.9]} 23... Rxc4 {[%clk
0:00:23.8]} 24. Rdg1+ {[%clk 0:02:00.7]} 24... Bg4 {[%clk 0:00:21.1]} 25. Rxg4+
{[%clk 0:02:00.1]} 25... hxg4 {[%clk 0:00:21.4]} 26. Qxh7+ {[%clk 0:02:00.5]}
26... Kf8 {[%clk 0:00:22.8]} 27. Qh8+ {[%clk 0:01:57.9]} 27... Ke7 {[%clk
0:00:17.1]} 28. Rh7+ {[%clk 0:01:57.3]} 28... Ke6 {[%clk 0:00:17.6]} 29. Qe8+
{[%clk 0:01:51.5]} 29... Kf6 {[%clk 0:00:18.4]} 30. Qf8+ {[%clk 0:01:49.1]}
30... Kg5 {[%clk 0:00:18.2]} 31. Qf5# {[%clk 0:01:49.5]} 1-0

[Event "*** Qualifier 3: Titled Tuesday 3|2 Blitz"]
[Site "Chess.com"]
[Date "2017.04.18"]
[Round "3"]
[White "Izoria123"]
[Black "dhanushbharadwaj"]
[Result "1-0"]
[WhiteElo "2644"]
[BlackElo "2459"]
[TimeControl "180+2"]
[EndTime "13:37:38 PDT"]
[Termination "Izoria123 won by resignation"]

1. Nf3 {[%clk 0:03:02]} 1... Nf6 {[%clk 0:03:00]} 2. c4 {[%clk 0:03:02.5]} 2...
g6 {[%clk 0:03:00.5]} 3. g3 {[%clk 0:02:58.1]} 3... Bg7 {[%clk 0:03:00.6]} 4.
Bg2 {[%clk 0:02:59.5]} 4... d6 {[%clk 0:02:58.8]} 5. O-O {[%clk 0:03:00.3]} 5...
O-O {[%clk 0:02:59.2]} 6. Nc3 {[%clk 0:03:01.7]} 6... Nbd7 {[%clk 0:02:57.6]} 7.
d4 {[%clk 0:02:59]} 7... e5 {[%clk 0:02:56.2]} 8. h3 {[%clk 0:03:00]} 8... c6
{[%clk 0:02:53.8]} 9. e4 {[%clk 0:03:00.5]} 9... Re8 {[%clk 0:02:52.6]} 10. Re1
{[%clk 0:02:56.8]} 10... a6 {[%clk 0:02:51.8]} 11. Be3 {[%clk 0:02:54.3]} 11...
b5 {[%clk 0:02:50.2]} 12. c5 {[%clk 0:02:47.7]} 12... b4 {[%clk 0:02:28.2]} 13.
Na4 {[%clk 0:02:46.7]} 13... Nxe4 {[%clk 0:01:34.2]} 14. cxd6 {[%clk 0:02:24.3]}
14... exd4 {[%clk 0:01:00]} 15. Bxd4 {[%clk 0:02:23.4]} 15... Bxd4 {[%clk
0:00:43.9]} 16. Qxd4 {[%clk 0:02:18.9]} 16... Nef6 {[%clk 0:00:44.7]} 17. Rxe8+
{[%clk 0:02:09.9]} 17... Qxe8 {[%clk 0:00:43.8]} 18. Re1 {[%clk 0:02:11.4]}
18... Qf8 {[%clk 0:00:44.5]} 19. Ng5 {[%clk 0:02:00.9]} 19... Bb7 {[%clk
0:00:33.2]} 20. Re7 {[%clk 0:01:50.3]} 20... h6 {[%clk 0:00:20.9]} 21. Rxf7
{[%clk 0:01:39.9]} 21... Qxf7 {[%clk 0:00:21.1]} 22. Nxf7 {[%clk 0:01:40.5]}
22... Kxf7 {[%clk 0:00:22.7]} 23. Qxb4 {[%clk 0:01:41.5]} 23... Rb8 {[%clk
0:00:17.5]} 24. Nc5 {[%clk 0:01:33.7]} 24... Nxc5 {[%clk 0:00:17.1]} 25. Qxc5
{[%clk 0:01:35.6]} 25... Rc8 {[%clk 0:00:18.2]} 26. Qa7 {[%clk 0:01:35.2]} 1-0

[Event "*** Qualifier 3: Titled Tuesday 3|2 Blitz"]
[Site "Chess.com"]
[Date "2017.04.18"]
[Round "3"]
[White "Yaacovn"]
[Black "Alexander_Moskalenko"]
[Result "1-0"]
[WhiteElo "2600"]
[BlackElo "2651"]
[TimeControl "180+2"]
[EndTime "13:38:20 PDT"]
[Termination "Yaacovn won by resignation"]

1. d4 {[%clk 0:03:01.9]} 1... e6 {[%clk 0:03:01.2]} 2. Nf3 {[%clk 0:03:03.2]}
2... d5 {[%clk 0:03:01.9]} 3. Bf4 {[%clk 0:03:04.2]} 3... Bd6 {[%clk 0:03:02.3]}
4. Bg3 {[%clk 0:03:04.9]} 4... Ne7 {[%clk 0:03:03.9]} 5. c4 {[%clk 0:03:04.3]}
5... c6 {[%clk 0:03:03.7]} 6. Nc3 {[%clk 0:03:04.8]} 6... Nf5 {[%clk 0:03:04.4]}
7. e4 {[%clk 0:03:04.3]} 7... Nxg3 {[%clk 0:03:03.7]} 8. hxg3 {[%clk 0:03:06.2]}
8... dxe4 {[%clk 0:03:05.1]} 9. Nxe4 {[%clk 0:03:07.1]} 9... Bb4+ {[%clk
0:03:06.6]} 10. Ned2 {[%clk 0:03:04]} 10... c5 {[%clk 0:03:01.8]} 11. a3 {[%clk
0:03:03.5]} 11... Bxd2+ {[%clk 0:03:02]} 12. Qxd2 {[%clk 0:03:05.4]} 12... cxd4
{[%clk 0:03:03.5]} 13. Qxd4 {[%clk 0:03:05.7]} 13... Qxd4 {[%clk 0:02:52.9]} 14.
Nxd4 {[%clk 0:03:07.6]} 14... Bd7 {[%clk 0:02:52.9]} 15. O-O-O {[%clk
0:02:56.8]} 15... Nc6 {[%clk 0:02:53.9]} 16. Be2 {[%clk 0:02:42.5]} 16... Nxd4
{[%clk 0:02:47.6]} 17. Rxd4 {[%clk 0:02:44.4]} 17... Bc6 {[%clk 0:02:49]} 18. f3
{[%clk 0:02:40.8]} 18... Ke7 {[%clk 0:02:45.4]} 19. g4 {[%clk 0:02:37.5]} 19...
a5 {[%clk 0:02:42.1]} 20. b3 {[%clk 0:02:38.5]} 20... e5 {[%clk 0:02:40.7]} 21.
Rd2 {[%clk 0:02:38.6]} 21... f6 {[%clk 0:02:41.9]} 22. Bd3 {[%clk 0:02:36.3]}
22... h6 {[%clk 0:02:35.1]} 23. Be4 {[%clk 0:02:34.4]} 23... Bxe4 {[%clk
0:02:31.2]} 24. fxe4 {[%clk 0:02:36.3]} 24... Rhd8 {[%clk 0:02:30.5]} 25. Rhd1
{[%clk 0:02:27.4]} 25... Rxd2 {[%clk 0:02:28.6]} 26. Rxd2 {[%clk 0:02:29.3]}
26... a4 {[%clk 0:02:14.1]} 27. b4 {[%clk 0:02:21.7]} 27... Rc8 {[%clk
0:02:14.5]} 28. c5 {[%clk 0:02:20.8]} 28... b6 {[%clk 0:02:14.2]} 29. Rd5 {[%clk
0:02:19.1]} 29... bxc5 {[%clk 0:02:13.6]} 30. bxc5 {[%clk 0:02:21]} 30... Rb8
{[%clk 0:02:12.1]} 31. Kc2 {[%clk 0:02:16.7]} 31... Rb3 {[%clk 0:02:11.2]} 32.
Rd3 {[%clk 0:02:17.1]} 32... Rb5 {[%clk 0:02:00.6]} 33. c6 {[%clk 0:02:07.3]}
33... g6 {[%clk 0:01:15.2]} 34. c7 {[%clk 0:02:01.2]} 34... Rc5+ {[%clk
0:01:15.3]} 35. Rc3 {[%clk 0:02:02]} 35... Rxc3+ {[%clk 0:01:16.9]} 36. Kxc3
{[%clk 0:02:03.9]} 36... Kd7 {[%clk 0:01:18.4]} 37. Kb4 {[%clk 0:02:04.8]} 37...
Kxc7 {[%clk 0:00:53.1]} 38. Kxa4 {[%clk 0:02:05.5]} 38... h5 {[%clk 0:00:51]}
39. gxh5 {[%clk 0:02:03.8]} 39... gxh5 {[%clk 0:00:52.9]} 40. Kb4 {[%clk
0:02:00.8]} 40... Kb6 {[%clk 0:00:45.9]} 41. Kc4 {[%clk 0:02:01.2]} 41... Kc6
{[%clk 0:00:40.7]} 42. g3 {[%clk 0:01:56.8]} 42... Kd6 {[%clk 0:00:39.6]} 43. a4
{[%clk 0:01:57.1]} 43... Kc6 {[%clk 0:00:28.3]} 44. a5 {[%clk 0:01:58]} 44...
Kb7 {[%clk 0:00:29.6]} 45. Kd5 {[%clk 0:01:58.6]} 45... Ka6 {[%clk 0:00:31.1]}
46. Ke6 {[%clk 0:01:59.8]} 46... h4 {[%clk 0:00:33]} 47. gxh4 {[%clk 0:02:00.3]}
47... Kxa5 {[%clk 0:00:34.6]} 48. Kxf6 {[%clk 0:02:01.4]} 48... Kb4 {[%clk
0:00:36.5]} 49. Kxe5 {[%clk 0:02:02.7]} 49... Kc5 {[%clk 0:00:38.4]} 1-0

[Event "*** Qualifier 3: Titled Tuesday 3|2 Blitz"]
[Site "Chess.com"]
[Date "2017.04.18"]
[Round "3"]
[White "chessking2151"]
[Black "Makalexa"]
[Result "1-0"]
[WhiteElo "2320"]
[BlackElo "2150"]
[TimeControl "180+2"]
[EndTime "13:38:20 PDT"]
[Termination "chessking2151 won on time"]

1. e4 {[%clk 0:03:02]} 1... e5 {[%clk 0:03:00.3]} 2. Nf3 {[%clk 0:03:02.8]} 2...
Nc6 {[%clk 0:03:01.5]} 3. Bb5 {[%clk 0:03:04]} 3... Nd4 {[%clk 0:02:58.8]} 4.
Bc4 {[%clk 0:03:04]} 4... Nxf3+ {[%clk 0:02:52.3]} 5. Qxf3 {[%clk 0:03:04.9]}
5... Qf6 {[%clk 0:02:53.6]} 6. Qe2 {[%clk 0:02:59.5]} 6... Bc5 {[%clk
0:02:40.6]} 7. Nc3 {[%clk 0:02:59.1]} 7... c6 {[%clk 0:02:40.5]} 8. d3 {[%clk
0:02:58.9]} 8... Ne7 {[%clk 0:02:39.6]} 9. Be3 {[%clk 0:02:55.1]} 9... Bd4
{[%clk 0:02:36.2]} 10. O-O {[%clk 0:02:50.5]} 10... O-O {[%clk 0:02:34.2]} 11.
Qd2 {[%clk 0:02:48.1]} 11... Bxc3 {[%clk 0:02:29.1]} 12. bxc3 {[%clk 0:02:42.9]}
12... d5 {[%clk 0:02:28.6]} 13. Bg5 {[%clk 0:02:43]} 13... Qd6 {[%clk
0:02:27.1]} 14. Bxe7 {[%clk 0:02:41.8]} 14... Qxe7 {[%clk 0:02:26.5]} 15. exd5
{[%clk 0:02:43.3]} 15... c5 {[%clk 0:01:57.9]} 16. Qe3 {[%clk 0:02:37.3]} 16...
Qd6 {[%clk 0:01:56.5]} 17. a4 {[%clk 0:02:37.4]} 17... b6 {[%clk 0:01:51.7]} 18.
a5 {[%clk 0:02:37.9]} 18... Bb7 {[%clk 0:01:51.9]} 19. d4 {[%clk 0:02:28.4]}
19... exd4 {[%clk 0:01:31.7]} 20. cxd4 {[%clk 0:02:26.8]} 20... Rac8 {[%clk
0:01:32.1]} 21. Rfd1 {[%clk 0:02:20.1]} 21... Rfe8 {[%clk 0:01:15.6]} 22. Qb3
{[%clk 0:02:03.2]} 22... cxd4 {[%clk 0:01:11]} 23. Rxd4 {[%clk 0:02:02.5]} 23...
Qc5 {[%clk 0:00:47.6]} 24. Rg4 {[%clk 0:01:46.9]} 24... h5 {[%clk 0:00:42.3]}
25. Rh4 {[%clk 0:01:44.3]} 25... g5 {[%clk 0:00:33]} 26. Qg3 {[%clk 0:01:37.3]}
26... f6 {[%clk 0:00:28.1]} 27. Bd3 {[%clk 0:01:15.4]} 27... Qxd5 {[%clk
0:00:16.9]} 28. Rxh5 {[%clk 0:01:13.6]} 28... Kf7 {[%clk 0:00:13.9]} 29. Rh7+
{[%clk 0:01:13.9]} 29... Ke6 {[%clk 0:00:13.5]} 30. Re1+ {[%clk 0:01:10.6]} 1-0

[Event "*** Qualifier 3: Titled Tuesday 3|2 Blitz"]
[Site "Chess.com"]
[Date "2017.04.18"]
[Round "3"]
[White "VMikhalevski"]
[Black "MyleneFarmer"]
[Result "1-0"]
[WhiteElo "2560"]
[BlackElo "2329"]
[TimeControl "180+2"]
[EndTime "13:38:46 PDT"]
[Termination "VMikhalevski won by resignation"]

1. g3 {[%clk 0:03:02]} 1... d5 {[%clk 0:03:00.7]} 2. Nf3 {[%clk 0:03:02.2]} 2...
Nf6 {[%clk 0:03:01.9]} 3. Bg2 {[%clk 0:03:03.5]} 3... c6 {[%clk 0:03:03.3]} 4.
O-O {[%clk 0:03:04.8]} 4... g6 {[%clk 0:03:04.7]} 5. b3 {[%clk 0:03:03.1]} 5...
Bg7 {[%clk 0:03:05.7]} 6. Bb2 {[%clk 0:03:04.7]} 6... O-O {[%clk 0:03:07.3]} 7.
c4 {[%clk 0:03:05.8]} 7... a5 {[%clk 0:03:07]} 8. d3 {[%clk 0:02:59.8]} 8... a4
{[%clk 0:03:07.5]} 9. Qc2 {[%clk 0:02:59.2]} 9... Na6 {[%clk 0:03:02]} 10. Bc3
{[%clk 0:02:58.7]} 10... Bg4 {[%clk 0:02:47.4]} 11. Nbd2 {[%clk 0:02:57.2]}
11... Re8 {[%clk 0:02:40.5]} 12. b4 {[%clk 0:02:42.4]} 12... b5 {[%clk 0:02:31]}
13. c5 {[%clk 0:02:33.6]} 13... Nd7 {[%clk 0:02:19.5]} 14. Bxg7 {[%clk
0:02:27.6]} 14... Kxg7 {[%clk 0:02:20.5]} 15. Nd4 {[%clk 0:02:27]} 15... Nxb4
{[%clk 0:01:47]} 16. Qc3 {[%clk 0:02:17.8]} 16... e5 {[%clk 0:01:46.4]} 17. Qxb4
{[%clk 0:01:57.1]} 17... exd4 {[%clk 0:01:46]} 18. Qxd4+ {[%clk 0:01:58.2]}
18... Nf6 {[%clk 0:01:46]} 19. e3 {[%clk 0:01:55.3]} 19... Qa5 {[%clk
0:01:36.8]} 20. Nf3 {[%clk 0:01:51.5]} 20... Bxf3 {[%clk 0:01:32.7]} 21. Bxf3
{[%clk 0:01:52.3]} 21... Qc7 {[%clk 0:01:32.9]} 22. Rab1 {[%clk 0:01:37.5]}
22... Qe5 {[%clk 0:01:32.8]} 23. Rb4 {[%clk 0:01:38.2]} 23... Qxd4 {[%clk
0:01:26.7]} 24. Rxd4 {[%clk 0:01:38]} 24... Nd7 {[%clk 0:01:08.2]} 25. Rc1
{[%clk 0:01:33.9]} 25... Ne5 {[%clk 0:00:38.3]} 26. Bg2 {[%clk 0:01:34.6]} 26...
f5 {[%clk 0:00:37.1]} 27. e4 {[%clk 0:01:21.7]} 27... dxe4 {[%clk 0:00:37.2]}
28. dxe4 {[%clk 0:01:22.1]} 28... Red8 {[%clk 0:00:38]} 29. Rcd1 {[%clk
0:01:19.2]} 29... Rxd4 {[%clk 0:00:37.4]} 30. Rxd4 {[%clk 0:01:20]} 30... fxe4
{[%clk 0:00:30]} 31. Rxe4 {[%clk 0:01:20.7]} 31... Nd3 {[%clk 0:00:28.4]} 32.
Re7+ {[%clk 0:01:20.4]} 32... Kf8 {[%clk 0:00:28.3]} 33. Rxh7 {[%clk 0:01:20.5]}
33... Kg8 {[%clk 0:00:28.8]} 34. Rc7 {[%clk 0:01:20.5]} 34... b4 {[%clk
0:00:25.7]} 35. Rxc6 {[%clk 0:01:17.3]} 35... Rd8 {[%clk 0:00:25]} 36. Rxg6+
{[%clk 0:01:17.1]} 36... Kf7 {[%clk 0:00:25.7]} 37. Rb6 {[%clk 0:01:17.3]} 37...
Rd4 {[%clk 0:00:20.7]} 38. c6 {[%clk 0:01:15.2]} 38... a3 {[%clk 0:00:20]} 39.
c7 {[%clk 0:01:14.4]} 1-0

[Event "*** Qualifier 3: Titled Tuesday 3|2 Blitz"]
[Site "Chess.com"]
[Date "2017.04.18"]
[Round "3"]
[White "abubakrtagelsir"]
[Black "NowInChess"]
[Result "1-0"]
[WhiteElo "2144"]
[BlackElo "1967"]
[TimeControl "180+2"]
[EndTime "13:39:02 PDT"]
[Termination "abubakrtagelsir won on time"]

1. e4 {[%clk 0:02:58.6]} 1... e6 {[%clk 0:03:00.7]} 2. d4 {[%clk 0:02:59.1]}
2... d5 {[%clk 0:03:01.6]} 3. Nc3 {[%clk 0:02:59.8]} 3... Nc6 {[%clk 0:03:00.2]}
4. Nf3 {[%clk 0:02:59.7]} 4... Nf6 {[%clk 0:03:00.7]} 5. Bd3 {[%clk 0:02:58.5]}
5... Bb4 {[%clk 0:03:00.5]} 6. e5 {[%clk 0:02:57.7]} 6... Ne4 {[%clk 0:03:00.8]}
7. Bd2 {[%clk 0:02:57.9]} 7... Nxd2 {[%clk 0:03:01.4]} 8. Qxd2 {[%clk
0:02:58.3]} 8... f6 {[%clk 0:03:02.1]} 9. O-O {[%clk 0:02:51.3]} 9... fxe5
{[%clk 0:02:48.3]} 10. Nxe5 {[%clk 0:02:51.1]} 10... Nxe5 {[%clk 0:02:41.5]} 11.
dxe5 {[%clk 0:02:51.5]} 11... O-O {[%clk 0:02:40.1]} 12. Qe2 {[%clk 0:02:47.6]}
12... Qg5 {[%clk 0:02:16.1]} 13. Nb5 {[%clk 0:02:41.6]} 13... Rf7 {[%clk
0:02:01.8]} 14. c3 {[%clk 0:02:40.9]} 14... Bf8 {[%clk 0:02:00.7]} 15. f4 {[%clk
0:02:39.9]} 15... Rxf4 {[%clk 0:01:33.8]} 16. Rxf4 {[%clk 0:02:34.1]} 16... Qxf4
{[%clk 0:01:34.5]} 17. Rf1 {[%clk 0:02:30.6]} 17... Bc5+ {[%clk 0:01:32.4]} 18.
Kh1 {[%clk 0:02:29.2]} 18... Qg5 {[%clk 0:01:20.6]} 19. Qf3 {[%clk 0:02:16.7]}
19... Qe7 {[%clk 0:01:10.5]} 20. Qh5 {[%clk 0:01:59.4]} 20... g6 {[%clk
0:01:08.4]} 21. Bxg6 {[%clk 0:01:56.7]} 21... hxg6 {[%clk 0:01:02]} 22. Qxg6+
{[%clk 0:01:55.9]} 22... Qg7 {[%clk 0:01:02.3]} 23. Qe8+ {[%clk 0:01:54.3]}
23... Bf8 {[%clk 0:00:52.4]} 24. Nxc7 {[%clk 0:01:50]} 24... Rb8 {[%clk
0:00:41.6]} 25. Nxe6 {[%clk 0:01:43.9]} 25... Bxe6 {[%clk 0:00:41]} 26. Qxe6+
{[%clk 0:01:41.9]} 26... Kh8 {[%clk 0:00:38.5]} 27. Rf7 {[%clk 0:01:39.8]} 27...
Qg5 {[%clk 0:00:26.3]} 28. Qh3+ {[%clk 0:01:36.9]} 28... Bh6 {[%clk 0:00:15.4]}
29. g3 {[%clk 0:01:33.3]} 29... Qc1+ {[%clk 0:00:14.1]} 30. Rf1 {[%clk
0:01:30.4]} 30... Qg5 {[%clk 0:00:12.7]} 31. Rf6 {[%clk 0:01:24.3]} 31... Kg7
{[%clk 0:00:12.9]} 32. Qd7+ {[%clk 0:01:22.5]} 32... Kh8 {[%clk 0:00:12.6]} 33.
Qd6 {[%clk 0:01:21.1]} 33... Qc1+ {[%clk 0:00:08.8]} 34. Kg2 {[%clk 0:01:18.5]}
34... Qc2+ {[%clk 0:00:09.2]} 35. Kh3 {[%clk 0:01:17.9]} 35... Kg7 {[%clk
0:00:02.8]} 36. Qxb8 {[%clk 0:01:13.3]} 1-0

[Event "*** Qualifier 3: Titled Tuesday 3|2 Blitz"]
[Site "Chess.com"]
[Date "2017.04.18"]
[Round "3"]
[White "RichardLeyvaP"]
[Black "daro94"]
[Result "0-1"]
[WhiteElo "2366"]
[BlackElo "2752"]
[TimeControl "180+2"]
[EndTime "13:39:09 PDT"]
[Termination "daro94 won on time"]

1. e4 {[%clk 0:03:02]} 1... d6 {[%clk 0:03:00.3]} 2. d4 {[%clk 0:03:02.3]} 2...
g6 {[%clk 0:03:01.9]} 3. Nc3 {[%clk 0:03:03.4]} 3... Bg7 {[%clk 0:03:03.5]} 4.
Be3 {[%clk 0:03:03.1]} 4... a6 {[%clk 0:03:01.8]} 5. f4 {[%clk 0:03:03.9]} 5...
b5 {[%clk 0:03:00.7]} 6. Nf3 {[%clk 0:03:04.8]} 6... Nd7 {[%clk 0:03:00.5]} 7.
e5 {[%clk 0:03:05.7]} 7... Nh6 {[%clk 0:03:00.2]} 8. Bd3 {[%clk 0:03:04.6]} 8...
Bb7 {[%clk 0:02:59.1]} 9. O-O {[%clk 0:03:03.4]} 9... c5 {[%clk 0:02:56.5]} 10.
exd6 {[%clk 0:02:56.2]} 10... c4 {[%clk 0:02:30.8]} 11. Be4 {[%clk 0:02:47.8]}
11... Bxe4 {[%clk 0:02:28.3]} 12. Nxe4 {[%clk 0:02:49.7]} 12... O-O {[%clk
0:02:23.5]} 13. Re1 {[%clk 0:02:47.9]} 13... exd6 {[%clk 0:02:07]} 14. c3 {[%clk
0:02:36.7]} 14... d5 {[%clk 0:02:01]} 15. Nc5 {[%clk 0:02:27.8]} 15... Ng4
{[%clk 0:02:02]} 16. Nxd7 {[%clk 0:02:24]} 16... Nxe3 {[%clk 0:01:55]} 17. Rxe3
{[%clk 0:02:22.5]} 17... Qxd7 {[%clk 0:01:56.6]} 18. Qe2 {[%clk 0:02:21.1]}
18... Rfe8 {[%clk 0:01:52.9]} 19. Ne5 {[%clk 0:02:20.9]} 19... Qd6 {[%clk
0:01:33.2]} 20. Re1 {[%clk 0:02:21.7]} 20... Re6 {[%clk 0:01:33.6]} 21. Nxf7
{[%clk 0:02:05.3]} 21... Rxe3 {[%clk 0:01:34.7]} 22. Nxd6 {[%clk 0:02:06.5]}
22... Rxe2 {[%clk 0:01:35.4]} 23. Rxe2 {[%clk 0:02:08.4]} 23... Bf8 {[%clk
0:01:23.3]} 24. Re6 {[%clk 0:01:58.4]} 24... Rb8 {[%clk 0:01:18.4]} 25. f5
{[%clk 0:01:49.9]} 25... b4 {[%clk 0:01:09.1]} 26. Kf2 {[%clk 0:00:23.8]} 26...
b3 {[%clk 0:00:51.8]} 27. a4 {[%clk 0:00:21.2]} 27... Rb6 {[%clk 0:00:51.5]} 28.
Nc8 {[%clk 0:00:05.8]} 28... Rxe6 {[%clk 0:00:52.6]} 29. fxe6 {[%clk 0:00:07.7]}
29... Ba3 {[%clk 0:00:54.3]} 30. e7 {[%clk 0:00:08.3]} 30... Kf7 {[%clk
0:00:54.4]} 31. Nb6 {[%clk 0:00:09.6]} 31... Bxb2 {[%clk 0:00:52.1]} 32. Nxd5
{[%clk 0:00:11.5]} 32... Bc1 {[%clk 0:00:45.9]} 33. Nc7 {[%clk 0:00:05.8]} 33...
Kxe7 {[%clk 0:00:45.9]} 0-1